bitfinex-derivatives/quotes_ETHF0:USTF0_20230702
["timestamp","ask_amount","ask_price","bid_price","bid_amount"]
[1688276498464,0.34551908,1915.0,1914.9,13.50161141]
[1688276498863,1.28568846,1915.0,1914.9,13.50161141]
[1688276499259,0.34551908,1915.0,1914.9,16.70941141]
[1688276499566,0.41535745,1915.0,1914.9,16.70941141]
[1688276500466,0.72867745,1915.0,1914.9,16.70941141]
[1688276502073,0.41535745,1915.0,1914.9,16.70941141]
[1688276502264,10.1017549,1915.2,1915.1,2.802]
[1688276502265,5.7808549,1915.2,1915.1,2.802]
[1688276502463,0.3133,1915.4,1915.1,9.41581635]
[1688276502669,5.79586557,1915.5,1915.3,6.0228]
[1688276502864,5.79586557,1915.5,1915.4,3.40596635]
[1688276503362,5.79586557,1915.5,1915.4,3.41137507]
[1688276503773,0.31326,1915.5,1915.4,3.41137507]
[1688276504468,0.31326,1915.5,1915.4,3.40596635]
[1688276506375,0.31326,1915.5,1915.4,3.41137915]
[1688276506875,0.91442075,1915.5,1915.4,3.41137915]
[1688276511079,0.60116075,1915.5,1915.4,3.41137915]
[1688276511781,0.91440075,1915.5,1915.4,3.41137915]
[1688276512380,0.91440075,1915.5,1915.4,3.1246628]
[1688276512679,0.91440075,1915.5,1915.4,0.3186628]
[1688276514386,0.91440075,1915.5,1915.4,0.73708977]
[1688276514584,0.91440075,1915.5,1915.4,0.3186628]
[1688276519588,0.91440075,1915.5,1915.4,0.60537915]
[1688276522588,6.13872827,1915.5,1915.4,5.71117915]
[1688276523388,6.13872827,1915.5,1915.4,5.4244628]
[1688276523580,6.13872827,1915.5,1915.4,5.71117915]
[1688276526486,5.82548827,1915.5,1915.4,5.71117915]
[1688276527684,0.60116075,1915.5,1915.4,5.71117915]
[1688276527885,0.91439075,1915.5,1915.4,5.71117915]
[1688276528078,6.13871827,1915.5,1915.4,5.71117915]
[1688276529086,0.91439075,1915.5,1915.4,5.71117915]
[1688276529489,6.13871827,1915.5,1915.4,5.71117915]
[1688276529682,0.91439075,1915.5,1915.4,5.71117915]
[1688276529883,6.13871827,1915.5,1915.4,5.71117915]
[1688276532085,6.13871827,1915.5,1915.4,8.51717915]
[1688276539895,5.82548827,1915.5,1915.4,8.51717915]
[1688276540088,6.13871827,1915.5,1915.4,8.51717915]
[1688276542185,11.62132384,1915.5,1915.4,8.51717915]
[1688276547696,12.30664953,1915.5,1915.4,8.51717915]
[1688276563909,6.13871827,1915.5,1915.4,8.51717915]
[1688276566816,12.30664953,1915.5,1915.4,8.51717915]
[1688276580329,12.30664953,1915.5,1915.4,8.2304628]
[1688276582128,12.30664953,1915.5,1915.4,8.51717915]
[1688276609262,11.99341953,1915.5,1915.4,8.51717915]
[1688276611263,12.30664953,1915.5,1915.4,8.51717915]
[1688276621167,12.30664953,1915.5,1915.4,8.2304628]
[1688276627478,12.30664953,1915.5,1915.4,8.51717915]
[1688276635284,12.30664953,1915.5,1915.4,2.8114128]
[1688276635485,12.98606625,1915.5,1915.4,0.0054128]
[1688276635681,12.98606625,1915.5,1915.4,0.3186628]
[1688276637786,6.13871827,1915.5,1915.4,0.3186628]
[1688276638887,12.30545085,1915.5,1915.4,0.3186628]
[1688276640388,12.30526608,1915.5,1915.4,0.3186628]
[1688276641589,12.30526608,1915.5,1915.4,5.4042628]
[1688276642181,12.30526608,1915.5,1915.4,8.2172628]
[1688276655489,12.30526608,1915.5,1915.4,13.2780628]
[1688276662105,12.30526608,1915.5,1915.4,13.56477915]
[1688276662799,12.30526608,1915.5,1915.4,13.2780628]
[1688276686327,12.30526608,1915.5,1915.4,13.27265]
[1688276686931,11.70410533,1915.5,1915.4,13.27265]
[1688276687228,12.26296573,1915.5,1915.4,13.27265]
[1688276687426,12.26296573,1915.5,1915.4,13.27797442]
[1688276697228,12.26296573,1915.5,1915.4,10.46497442]
[1688276706537,21.92992811,1915.5,1915.4,0.00532442]
[1688276706838,24.4297659,1915.5,1914.8,3.2078]
[1688276707036,3.13233,1914.9,1914.7,1.05236351]
[1688276707237,0.2493375,1914.8,1914.7,6.18846351]
[1688276707441,0.5626775,1914.8,1914.7,6.18846351]
[1688276707638,0.31334,1914.8,1914.7,6.18846351]
[1688276707837,0.56264746,1914.8,1914.7,6.18846351]
[1688276710247,0.56264746,1914.8,1914.7,6.61598908]
[1688276714751,0.56264746,1914.8,1914.7,6.90270543]
[1688276715147,0.56264746,1914.8,1914.7,6.61598908]
[1688276715344,0.56264746,1914.8,1914.7,6.62084816]
[1688276720651,0.56264746,1914.8,1914.7,6.90756451]
[1688276720847,0.56264746,1914.8,1914.7,6.62084816]
[1688276722753,0.56264746,1914.8,1914.7,6.90756451]
[1688276737682,0.56264746,1914.8,1914.7,6.62084816]
[1688276751187,0.56264746,1914.8,1914.7,6.90756451]
[1688276751382,5.7293521,1914.8,1914.7,6.90756451]
[1688276751990,5.7293521,1914.8,1914.7,6.62084816]
[1688276754192,5.7293521,1914.8,1914.7,6.90756451]
[1688276755398,5.7293521,1914.8,1914.7,6.62084816]
[1688276763206,5.7293521,1914.8,1914.7,6.90756451]
[1688276764113,5.4160121,1914.8,1914.7,9.72056451]
[1688276764402,0.24930746,1914.8,1914.7,9.72056451]
[1688276764707,0.56264746,1914.8,1914.7,9.72056451]
[1688276764908,0.31334,1914.8,1914.7,9.72056451]
[1688276765108,0.55917702,1914.8,1914.7,9.72056451]
[1688276772217,0.55917702,1914.8,1914.7,6.90756451]
[1688276776421,0.55917702,1914.8,1914.7,6.62084816]
[1688276776621,3.37517702,1914.8,1914.7,0.44021816]
[1688276776828,13.95686237,1914.8,1914.7,0.01269259]
[1688276777122,8.29604464,1914.8,1914.7,0.01269259]
[1688276777526,12.50647017,1914.8,1914.7,0.00783351]
[1688276777720,17.67317481,1914.8,1914.7,0.00783351]
[1688276778224,11.50384464,1914.8,1914.7,0.00783351]
[1688276778427,11.50384464,1914.8,1914.7,0.01383829]
[1688276780331,16.98008573,1914.8,1914.7,0.01383829]
[1688276781228,11.50384464,1914.8,1914.7,0.01383829]
[1688276781426,20.17184464,1914.8,1914.7,0.01383829]
[1688276781624,26.34117481,1914.8,1914.7,0.01383829]
[1688276782433,26.34117481,1914.8,1914.7,0.00783351]
[1688276782629,29.45201073,1914.8,1914.7,0.00783351]
[1688276782926,35.60918545,1914.8,1914.7,0.00783351]
[1688276783124,29.45201073,1914.8,1914.7,0.00783351]
[1688276783926,36.29935871,1914.8,1914.7,0.00783351]
[1688276786029,27.01919262,1914.8,1914.7,0.00783351]
[1688276786224,26.32236466,1914.8,1914.7,0.00783351]
[1688276786631,20.17184464,1914.8,1914.7,0.00783351]
[1688276787032,26.32224357,1914.8,1914.7,0.00783351]
[1688276787632,26.32230202,1914.8,1914.7,0.00783351]
[1688276793923,27.91337912,1914.8,1914.7,0.00783351]
[1688276795733,27.91337912,1914.8,1914.1,4.9349]
[1688276795734,35.73037912,1914.8,1914.1,4.9349]
[1688276796036,3.2078,1914.3,1914.2,5.60097117]
[1688276796337,6.33923,1914.3,1914.2,5.189]
[1688276796528,6.33923,1914.3,1914.2,5.61250237]
[1688276796934,6.33923,1914.3,1914.2,5.1950452]
[1688276797135,6.33923,1914.3,1914.2,5.61253173]
[1688276799834,3.13143,1914.3,1914.2,5.92597173]
[1688276800031,3.13143,1914.3,1914.2,6.21268808]
[1688276801131,3.13143,1914.3,1914.2,5.92597173]
[1688276802240,3.13143,1914.3,1914.2,5.61253173]
[1688276803342,6.33923,1914.3,1914.2,5.61253173]
[1688276818847,3.13143,1914.3,1914.2,6.21268808]
[1688276819050,0.79140596,1914.4,1914.3,0.41743]
[1688276819246,0.79140596,1914.4,1914.3,0.98491412]
[1688276819443,0.79140596,1914.4,1914.3,1.41060237]
[1688276819858,0.79140596,1914.4,1914.3,6.40180237]
[1688276822060,3.60740596,1914.4,1914.3,6.40180237]
[1688276822558,3.60740596,1914.4,1914.3,6.08837237]
[1688276822859,8.72693523,1914.4,1914.3,6.08837237]
[1688276823459,8.72693523,1914.4,1914.3,5.41688825]
[1688276824258,14.18901502,1914.4,1914.3,5.41688825]
[1688276830057,14.18901502,1914.4,1914.3,5.83271553]
[1688276830763,11.37301502,1914.4,1914.3,6.11943188]
[1688276831158,11.37301502,1914.4,1914.3,5.83271553]
[1688276832154,14.19101502,1914.4,1914.3,5.83271553]
[1688276834263,14.20692978,1914.4,1914.3,5.83271553]
[1688276836460,8.72893523,1914.4,1914.3,5.83271553]
[1688276836969,14.20731534,1914.4,1914.3,5.83271553]
[1688276837268,14.20731534,1914.4,1914.3,5.41306052]
[1688276837460,14.20731534,1914.4,1914.3,5.40702728]
[1688276837765,14.20731534,1914.4,1914.3,6.11447517]
[1688276837969,10.60574534,1914.4,1914.3,12.45070517]
[1688276838265,0.32124596,1914.4,1914.3,12.31580963]
[1688276838469,5.44077523,1914.4,1914.3,12.32184287]
[1688276839468,5.11952927,1914.4,1914.3,12.32184287]
[1688276839670,4.85192927,1914.4,1914.3,12.32184287]
[1688276839968,5.16533927,1914.4,1914.3,12.32184287]
[1688276841066,2.48652927,1914.4,1914.3,9.32500687]
[1688276841368,0.31339,1914.5,1914.3,12.38293024]
[1688276841566,0.31339,1914.5,1914.4,3.38848412]
[1688276841761,0.31339,1914.5,1914.4,3.70189412]
[1688276841960,5.79178011,1914.6,1914.4,3.70189412]
[1688276841961,5.79178011,1914.6,1914.4,3.94684741]
[1688276842272,5.79178011,1914.6,1914.5,3.09271635]
[1688276842462,5.79178011,1914.6,1914.5,3.41212517]
[1688276843368,5.79178011,1914.6,1914.5,3.40610635]
[1688276843766,0.3134,1914.6,1914.5,3.40610635]
[1688276844359,0.3134,1914.6,1914.5,13.56450635]
[1688276844560,0.3134,1914.6,1914.5,13.80962473]
[1688276845364,0.3134,1914.6,1914.5,13.81564355]
[1688276852380,5.47838011,1914.7,1914.5,13.81564355]
[1688276852571,0.31338,1914.6,1914.5,13.81564355]
[1688276853676,0.31338,1914.6,1914.5,14.23615073]
[1688276863582,2.47202273,1914.6,1914.5,14.23615073]
[1688276877999,2.15864273,1914.6,1914.5,14.23615073]
[1688276881799,2.47202273,1914.6,1914.5,14.23615073]
[1688276883901,7.95040284,1914.6,1914.5,14.23615073]
[1688276889409,7.63702284,1914.6,1914.5,14.23615073]
[1688276896611,7.95040284,1914.6,1914.5,0.67164438]
[1688276896911,8.62248011,1914.6,1914.5,0.67164438]
[1688276897112,8.62248011,1914.6,1914.5,0.426526]
[1688276897620,8.62248011,1914.6,1914.5,0.67482884]
[1688276903716,2.47202273,1914.6,1914.5,0.67482884]
[1688276904810,7.94777672,1914.6,1914.5,0.67482884]
[1688276905012,2.47202273,1914.6,1914.5,0.67482884]
[1688276905616,7.94777063,1914.6,1914.5,1.27493519]
[1688276912222,7.94777063,1914.6,1914.5,4.08093519]
[1688276918723,7.94777063,1914.6,1914.5,3.79421884]
[1688276918934,7.94777063,1914.6,1914.5,8.72511884]
[1688276919129,7.94777063,1914.6,1914.5,9.01183519]
[1688276920333,7.94777063,1914.6,1914.5,5.91911884]
[1688276920536,7.94777063,1914.6,1914.5,8.74011884]
[1688276920840,2.47202273,1914.6,1914.5,8.74011884]
[1688276921633,8.62248011,1914.6,1914.5,8.74011884]
[1688276922332,8.62248011,1914.6,1914.5,5.91911884]
[1688276925136,2.47202273,1914.6,1914.5,5.91911884]
[1688276925844,8.62248011,1914.6,1914.5,5.91911884]
[1688276926033,8.62248011,1914.6,1914.5,6.20583519]
[1688276926342,2.47202273,1914.6,1914.5,6.20583519]
[1688276927746,8.62248011,1914.6,1914.5,6.20583519]
[1688276927946,8.62248011,1914.6,1914.5,5.89244519]
[1688276928140,8.62248011,1914.6,1914.5,5.60572884]
[1688276928645,8.62248011,1914.6,1914.5,5.89244519]
[1688276929031,2.47202273,1914.6,1914.5,5.89244519]
[1688276929533,2.47202273,1914.6,1914.5,6.20583519]
[1688276930347,8.62248011,1914.6,1914.5,6.20583519]
[1688276931847,2.47202273,1914.6,1914.5,6.20583519]
[1688276932245,8.62248011,1914.6,1914.5,6.20583519]
[1688276938552,8.62248011,1914.6,1914.5,0.67482884]
[1688276939046,8.62248011,1914.6,1914.5,1.27493519]
[1688276940147,8.62248011,1914.6,1914.5,0.98821884]
[1688276940750,11.44148011,1914.6,1914.5,0.67482884]
[1688276941147,11.44148011,1914.6,1914.5,0.426526]
[1688276941148,12.13837071,1914.6,1914.5,0.426526]
[1688276941658,11.45178319,1914.6,1914.5,0.67150551]
[1688276941948,11.45178319,1914.6,1914.5,0.42050718]
[1688276942159,11.45208225,1914.6,1914.5,0.42050718]
[1688276942345,11.45208225,1914.6,1914.4,0.31341]
[1688276942655,2.15864273,1914.5,1914.4,0.31341]
[1688276942855,2.47204273,1914.5,1914.4,0.31341]
[1688276943550,2.47204273,1914.5,1914.4,0.60615424]
[1688276944654,2.47204273,1914.5,1914.4,0.31943789]
[1688276946655,7.94757006,1914.5,1914.4,0.31943789]
[1688276947357,2.47204273,1914.5,1914.4,0.31943789]
[1688276947568,7.94713512,1914.5,1914.4,0.31943789]
[1688276948464,7.94713512,1914.5,1914.4,0.60615424]
[1688276948872,7.94713512,1914.5,1914.4,0.31943789]
[1688276949466,7.94713512,1914.5,1914.4,0.31341]
[1688276951162,7.94713512,1914.5,1914.4,0.56498953]
[1688276952669,7.94713512,1914.5,1914.4,0.57101742]
[1688276956269,7.94713512,1914.5,1914.4,0.85773377]
[1688276959265,7.94713512,1914.5,1914.4,0.57101742]
[1688276960168,7.94713512,1914.5,1914.4,0.85773377]
[1688276965978,7.94713512,1914.5,1914.4,0.57101742]
[1688276966678,2.47204273,1914.5,1914.4,0.57101742]
[1688276966882,5.67984273,1914.5,1914.4,0.57101742]
[1688276967477,5.67984273,1914.5,1914.4,0.56498953]
[1688276970785,11.15351147,1914.5,1914.4,0.56498953]
[1688276973585,11.15351147,1914.5,1914.4,0.85170588]
[1688276974281,7.94571147,1914.5,1914.4,0.85170588]
[1688276974491,7.94571147,1914.5,1914.4,0.85761384]
[1688276979190,7.94571147,1914.5,1914.4,0.57089749]
[1688276982585,7.94571147,1914.5,1914.4,0.85761384]
[1688276996304,7.63231147,1914.5,1914.4,0.85761384]
[1688276996499,7.63231147,1914.5,1914.4,3.66361384]
[1688276997200,7.94570147,1914.5,1914.4,3.66361384]
[1688276997599,2.47203273,1914.5,1914.4,3.66361384]
[1688276998101,7.94570147,1914.5,1914.4,3.66361384]
[1688276998294,2.47203273,1914.5,1914.4,3.66361384]
[1688276999198,7.94570147,1914.5,1914.4,3.66361384]
[1688277002202,7.94570147,1914.5,1914.4,0.85761384]
[1688277005208,2.47203273,1914.5,1914.4,0.85761384]
[1688277006007,2.47203273,1914.5,1914.4,1.18596399]
[1688277012012,2.15864273,1914.5,1914.4,1.18596399]
[1688277012209,2.15864273,1914.5,1914.4,0.60603431]
[1688277014712,2.47203273,1914.5,1914.4,0.60603431]
[1688277025115,7.94570147,1914.5,1914.4,0.60603431]
[1688277027323,2.47203273,1914.5,1914.4,0.60603431]
[1688277027816,2.15864273,1914.5,1914.4,0.60603431]
[1688277028622,2.15864273,1914.5,1914.4,1.18704906]
[1688277029416,2.15864273,1914.5,1914.4,0.60603431]
[1688277032127,2.15864273,1914.5,1914.4,3.42703431]
[1688277032427,7.94569147,1914.6,1914.4,4.00827587]
[1688277032615,7.94569147,1914.6,1914.5,5.23149]
[1688277032817,7.94569147,1914.6,1914.5,5.74557449]
[1688277033514,7.94569147,1914.6,1914.5,5.7524527]
[1688277040938,7.94569147,1914.6,1914.5,5.50235129]
[1688277042936,7.94569147,1914.6,1914.5,10.79485129]
[1688277046740,7.94569147,1914.6,1914.5,11.21525942]
[1688277048837,2.47202273,1914.6,1914.5,11.21525942]
[1688277049738,2.15864273,1914.6,1914.5,11.21525942]
[1688277050044,2.15864273,1914.6,1914.5,11.04664412]
[1688277051250,2.47202273,1914.6,1914.5,11.04664412]
[1688277052049,2.47202273,1914.6,1914.5,13.86164412]
[1688277065554,2.15864273,1914.6,1914.5,17.06044412]
[1688277065856,14.79963693,1914.9,1914.5,17.06044412]
[1688277065857,2.15864273,1914.7,1914.5,17.06044412]
[1688277066055,2.47199273,1914.8,1914.6,3.66920047]
[1688277066260,2.47199273,1914.8,1914.7,10.11896]
[1688277066459,2.47199273,1914.8,1914.7,10.21408835]
[1688277066662,2.47199273,1914.8,1914.7,10.22072612]
[1688277067958,0.31335,1914.8,1914.7,10.22072612]
[1688277071754,0.31335,1914.8,1914.7,13.02672612]
[1688277077659,3.09875273,1914.9,1914.7,13.44934522]
[1688277077864,3.09875273,1914.9,1914.8,1.16754047]
[1688277078261,3.09875273,1914.9,1914.8,1.26342059]
[1688277078660,3.09875273,1914.9,1914.8,1.26953687]
[1688277085368,2.15864273,1914.9,1914.8,4.07553687]
[1688277087776,2.47197273,1914.9,1914.8,4.07553687]
[1688277089872,2.15864273,1914.9,1914.8,4.07553687]
[1688277093280,5.24803,1915.0,1914.8,4.07553687]
[1688277093281,7.40667273,1915.0,1914.8,4.07553687]
[1688277094081,7.40667273,1915.0,1914.9,5.50333]
[1688277094579,7.40667273,1915.0,1914.9,5.60636029]
[1688277094778,2.47197273,1915.0,1914.9,5.60636029]
[1688277094974,0.31333,1915.0,1914.9,5.60636029]
[1688277096887,0.31333,1915.0,1914.9,0.41636029]
[1688277097389,5.29096273,1915.1,1914.9,10.63966029]
[1688277098289,2.47196273,1915.1,1915.0,3.66720047]
[1688277098583,2.47196273,1915.1,1915.0,3.98051047]
[1688277098887,2.47196273,1915.1,1915.0,4.07770693]
[1688277102286,2.15864273,1915.1,1915.0,4.07770693]
[1688277102492,0.31329,1915.1,1915.0,4.07770693]
[1688277102691,2.47193273,1915.1,1915.0,4.07770693]
[1688277103883,2.15864273,1915.1,1915.0,4.07770693]
[1688277104182,0.20830565,1915.1,1915.0,3.98051047]
[1688277104895,2.47189273,1915.4,1915.0,3.98051047]
[1688277105104,0.31325,1915.4,1915.2,2.813]
[1688277105302,2.47189273,1915.4,1915.3,0.28671635]
[1688277106603,2.82490761,1915.4,1915.3,0.28671635]
[1688277107192,2.82490761,1915.4,1915.3,3.09271635]
[1688277107701,2.82490761,1915.4,1915.3,3.09879807]
[1688277109694,2.82490761,1915.4,1915.3,8.08889807]
[1688277110706,0.66626488,1915.4,1915.3,8.08889807]
[1688277112108,0.66626488,1915.4,1915.3,3.41205807]
[1688277113006,0.66626488,1915.4,1915.3,8.47875807]
[1688277113303,0.66626488,1915.4,1915.3,6.61985807]
[1688277113304,0.35301488,1915.4,1915.3,6.61985807]
[1688277113709,2.24201423,1915.7,1915.5,0.31323]
[1688277113907,0.7831,1915.8,1915.6,3.10171635]
[1688277114106,0.7831,1915.8,1915.7,2.806]
[1688277114403,0.7831,1915.8,1915.7,8.25928412]
[1688277114595,0.7831,1915.8,1915.7,8.2653319]
[1688277114801,0.7831,1915.8,1915.7,8.5785319]
[1688277117105,0.31318,1915.8,1915.7,8.5785319]
[1688277121305,0.87054001,1915.8,1915.7,8.5785319]
[1688277121512,0.31318,1915.8,1915.7,8.5785319]
[1688277121707,0.87050577,1915.8,1915.7,8.5785319]
[1688277125204,0.87050577,1915.8,1915.7,8.2653319]
[1688277125608,0.87050577,1915.8,1915.7,8.69284841]
[1688277126405,0.87050577,1915.8,1915.7,3.80704841]
[1688277127406,0.87050577,1915.8,1915.7,3.23956429]
[1688277127807,4.07830577,1915.8,1915.7,3.23956429]
[1688277128716,6.89430577,1915.8,1915.7,0.00604778]
[1688277128918,9.14369074,1915.8,1915.7,0.00604778]
[1688277129106,14.35189074,1915.8,1915.7,0.00604778]
[1688277129601,14.14514953,1915.8,1915.5,0.42332324]
[1688277129809,6.33701,1915.6,1915.5,0.42332324]
[1688277130005,6.33701,1915.6,1915.4,0.31324]
[1688277130606,6.33701,1915.6,1915.5,0.00584564]
[1688277130913,6.33701,1915.6,1915.5,0.31907564]
[1688277131312,6.33701,1915.6,1915.5,0.60579199]
[1688277132108,3.52101,1915.6,1915.5,3.42079199]
[1688277136614,3.87085193,1915.6,1915.5,3.42079199]
[1688277140205,6.09530781,1915.6,1915.5,3.42079199]
[1688277145221,6.09530781,1915.6,1915.5,8.61879199]
[1688277151220,2.88750781,1915.6,1915.5,8.60979199]
[1688277151414,0.66305193,1915.6,1915.5,8.60979199]
[1688277156018,0.34984193,1915.6,1915.5,8.71379199]
[1688277156215,5.74544588,1915.8,1915.5,8.71379199]
[1688277156518,5.74544588,1915.8,1915.7,3.1262]
[1688277156715,5.74544588,1915.8,1915.7,3.41291635]
[1688277157716,5.74544588,1915.8,1915.7,3.4187408]
[1688277159915,5.74544588,1915.8,1915.7,8.3101408]
[1688277162022,5.74544588,1915.8,1915.7,5.4971408]
[1688277162323,5.74544588,1915.8,1915.7,8.3121408]
[1688277164026,6.00812966,1915.8,1915.7,8.3121408]
[1688277167427,2.48713966,1915.8,1915.7,14.3409408]
[1688277167739,0.50306495,1915.8,1915.7,14.3409408]
[1688277167920,0.31315,1916.0,1915.7,14.3409408]
[1688277168118,0.31315,1916.0,1915.9,3.11917]
[1688277168320,0.31315,1916.0,1915.9,3.40588635]
[1688277168729,0.31315,1916.0,1915.9,3.41169258]
[1688277168916,0.31315,1916.0,1915.9,8.36779258]
[1688277169316,6.21512588,1916.2,1915.9,8.36779258]
[1688277169317,5.74537588,1916.2,1915.9,8.36779258]
[1688277169523,5.74537588,1916.2,1916.1,2.821]
[1688277170219,5.74537588,1916.2,1916.1,3.13413]
[1688277170426,5.74537588,1916.2,1916.1,3.42084635]
[1688277170827,5.74537588,1916.2,1916.1,8.37694635]
[1688277171220,5.74537588,1916.2,1916.1,8.94443047]
[1688277171729,3.52092,1916.2,1916.1,8.94443047]
[1688277171926,3.52092,1916.2,1916.1,8.09023]
[1688277172133,5.74537588,1916.2,1916.1,5.26923]
[1688277173426,5.74537588,1916.2,1916.1,5.55594635]
[1688277176137,5.74537588,1916.2,1916.1,8.36894635]
[1688277176342,3.52092,1916.2,1916.1,8.36894635]
[1688277176735,3.2078,1916.2,1916.1,8.36894635]
[1688277177436,19.10927,1916.6,1916.1,8.36894635]
[1688277177437,0.78277,1916.6,1916.2,0.56748412]
[1688277177635,0.78277,1916.6,1916.5,2.821]
[1688277177933,3.08885077,1916.6,1916.5,3.42078635]
[1688277178234,0.78277,1916.6,1916.5,3.98827047]
[1688277178630,0.78277,1916.6,1916.5,3.70155412]
[1688277179032,0.78277,1916.6,1916.5,3.98827047]
[1688277179235,0.78277,1916.6,1916.5,3.13407]
[1688277179636,0.78277,1916.6,1916.5,3.42078635]
[1688277180140,0.78277,1916.6,1916.5,3.13407]
[1688277181242,0.78277,1916.6,1916.5,3.42078635]
[1688277181436,1.67231939,1916.6,1916.5,3.42078635]
[1688277181938,1.67231939,1916.6,1916.5,3.13407]
[1688277182236,1.67231939,1916.6,1916.5,2.821]
[1688277182533,1.67231939,1916.6,1916.5,3.13407]
[1688277183131,1.67231939,1916.6,1916.5,3.42078635]
[1688277183730,1.67231939,1916.6,1916.5,3.42654807]
[1688277184535,1.67231939,1916.6,1916.5,3.42054807]
[1688277186233,1.67231939,1916.6,1916.5,3.13383172]
[1688277186544,1.67231939,1916.6,1916.5,0.31883172]
[1688277186747,3.97840016,1916.6,1916.5,0.31883172]
[1688277200558,3.97840016,1916.6,1916.5,5.62033172]
[1688277202257,6.79740016,1916.6,1916.5,5.62033172]
[1688277202459,6.79740016,1916.6,1916.5,10.85653172]
[1688277203959,6.79740016,1916.6,1916.5,11.14324807]
[1688277205865,3.97840016,1916.6,1916.5,13.95824807]
[1688277206162,1.67231939,1916.6,1916.5,13.95824807]
[1688277210663,3.97840016,1916.6,1916.5,13.95824807]
[1688277211158,3.97840016,1916.6,1916.5,14.06024807]
[1688277211159,0.89080744,1916.6,1916.5,14.06024807]
[1688277211360,2.62916037,1916.8,1916.5,14.06024807]
[1688277211549,0.44570071,1916.6,1916.5,11.81473219]
[1688277211754,0.31303,1916.7,1916.5,14.62773219]
[1688277211965,0.31303,1916.7,1916.6,2.806]
[1688277212260,0.31303,1916.7,1916.6,3.11905]
[1688277212662,0.31303,1916.7,1916.6,3.1248003]
[1688277213257,0.31303,1916.7,1916.6,6.3326003]
[1688277214460,0.31303,1916.7,1916.6,3.1248003]
[1688277217356,7.62992798,1916.8,1916.6,3.1248003]
[1688277217557,7.62992798,1916.8,1916.7,3.12604]
[1688277218265,7.62992798,1916.8,1916.7,3.41275635]
[1688277218766,7.62992798,1916.8,1916.7,2.8187412]
[1688277218961,7.62992798,1916.8,1916.7,3.1317812]
[1688277219761,7.62992798,1916.8,1916.7,3.41849755]
[1688277220965,6.84734798,1916.8,1916.7,3.41849755]
[1688277221261,6.84734798,1916.8,1916.7,3.98598167]
[1688277221262,7.16036798,1916.8,1916.7,3.98598167]
[1688277223165,7.16036798,1916.8,1916.7,8.88258167]
[1688277225974,6.84734798,1916.8,1916.7,8.88258167]
[1688277226463,7.29545964,1916.8,1916.7,8.88258167]
[1688277226665,0.44811166,1916.8,1916.7,8.88258167]
[1688277226870,0.44811166,1916.8,1916.7,12.09038167]
[1688277227068,7.16037798,1916.9,1916.7,12.09038167]
[1688277227259,0.44805897,1916.8,1916.7,12.09038167]
[1688277227459,7.16037798,1916.9,1916.7,12.09038167]
[1688277227663,7.16037798,1916.9,1916.7,17.22498167]
[1688277227968,0.44802384,1916.8,1916.7,17.22498167]
[1688277228358,7.16037798,1916.9,1916.7,17.22498167]
[1688277228564,0.44797305,1916.8,1916.7,13.44969755]
[1688277228766,0.76099305,1916.8,1916.7,13.44969755]
[1688277231274,1.70052266,1916.8,1916.7,13.44969755]
[1688277231776,1.70052266,1916.8,1916.7,13.1629812]
[1688277232263,1.70052266,1916.8,1916.7,13.44969755]
[1688277233174,4.50952266,1916.8,1916.6,0.46955]
[1688277233469,3.52084,1916.7,1916.6,0.46955]
[1688277233661,4.46036961,1916.7,1916.6,0.46955]
[1688277233864,4.90840911,1916.7,1916.6,0.46955]
[1688277234273,11.75575709,1916.7,1916.6,0.46955]
[1688277237673,8.54795709,1916.7,1916.6,0.46955]
[1688277238971,8.54795709,1916.7,1916.6,0.75626635]
[1688277239276,1.38756911,1916.7,1916.6,3.56226635]
[1688277239574,1.70060911,1916.7,1916.6,3.56226635]
[1688277241169,1.70060911,1916.7,1916.6,3.27555]
[1688277241669,1.70060911,1916.7,1916.6,3.56779584]
[1688277242265,1.70060911,1916.7,1916.6,3.28107949]
[1688277243372,1.70060911,1916.7,1916.6,3.56779584]
[1688277243776,1.38756911,1916.7,1916.6,8.70699584]
[1688277244182,0.7610795,1916.7,1916.6,8.70699584]
[1688277245077,0.4480395,1916.7,1916.6,8.70699584]
[1688277245682,0.7610795,1916.7,1916.6,8.70699584]
[1688277246484,1.70060911,1916.7,1916.6,8.70699584]
[1688277247179,4.90840911,1916.7,1916.6,2.81152949]
[1688277247383,4.90840911,1916.7,1916.6,3.12457949]
[1688277247587,11.75575709,1916.7,1916.6,3.12457949]
[1688277250890,11.75575709,1916.7,1916.6,0.00552949]
[1688277250891,7.71740911,1916.7,1916.6,0.00552949]
[1688277251685,12.71520911,1916.7,1916.3,0.78274]
[1688277251991,6.33889,1916.4,1916.3,0.78274]
[1688277252289,7.26941961,1916.4,1916.3,0.78274]
[1688277252491,7.71615346,1916.4,1916.3,0.78274]
[1688277252693,7.71615346,1916.4,1916.2,0.79060717]
[1688277252895,0.93952961,1916.3,1916.2,0.79060717]
[1688277253188,4.51532559,1916.3,1916.2,0.00782717]
[1688277253582,11.11521195,1916.3,1916.2,0.00782717]
[1688277253787,22.40003612,1916.3,1916.2,0.00782717]
[1688277253983,22.69116614,1916.3,1916.2,0.00782717]
[1688277254191,15.55762961,1916.3,1916.2,0.00782717]
[1688277256384,22.39090944,1916.3,1916.2,0.00782717]
[1688277256781,22.69116614,1916.3,1916.2,0.00782717]
[1688277256981,22.39081995,1916.3,1916.2,0.00782717]
[1688277261797,22.81425614,1916.3,1916.2,0.00782717]
[1688277261998,15.9810658,1916.3,1916.2,0.08909178]
[1688277262191,15.9810658,1916.3,1916.2,0.00782717]
[1688277262591,15.9810658,1916.3,1916.2,0.08912627]
[1688277262895,15.9810658,1916.3,1916.2,0.09447193]
[1688277263102,7.3130658,1916.3,1916.2,0.09447193]
[1688277263695,7.3130658,1916.3,1916.2,0.38118828]
[1688277264094,4.4970658,1916.3,1916.2,0.69430828]
[1688277265097,4.4970658,1916.3,1916.2,10.58380828]
[1688277267703,0.89597338,1916.3,1916.2,10.50250918]
[1688277268008,0.47253719,1916.3,1916.2,10.50250918]
[1688277272607,1.41229604,1916.3,1916.2,10.50250918]
[1688277272801,1.41229604,1916.3,1916.2,10.49716352]
[1688277273915,0.47253719,1916.3,1916.2,10.50250918]
[1688277276611,0.15943719,1916.3,1916.2,10.60650918]
[1688277276818,6.79956,1916.4,1916.2,10.60650918]
[1688277277116,0.16152148,1916.3,1916.2,10.60650918]
[1688277277416,0.3131,1916.3,1916.2,10.60650918]
[1688277277613,0.54369472,1916.3,1916.2,10.60650918]
[1688277279315,1.48341484,1916.3,1916.2,10.60650918]
[1688277280810,4.30241484,1916.3,1916.2,9.90267283]
[1688277281410,4.30241484,1916.3,1916.2,0.01317283]
[1688277281823,4.30241484,1916.3,1916.2,0.00782717]
[1688277283017,15.78741484,1916.3,1916.2,0.00782717]
[1688277283511,15.55682012,1916.3,1916.2,0.00782717]
[1688277283710,15.55682012,1916.3,1916.2,0.01317311]
[1688277290110,22.39001046,1916.3,1916.2,0.01317311]
[1688277291823,13.72201046,1916.3,1916.2,0.61300946]